[Event "*** Titled Tuesday Blitz"]
[Site "Chess.com"]
[Date "2020.11.03"]
[Round "7"]
[White "Promacherr"]
[Black "BilodeauA"]
[Result "0-1"]
[WhiteElo "2703"]
[BlackElo "2881"]
[TimeControl "180+1"]
[EndTime "11:21:10 PST"]
[Termination "BilodeauA won by resignation"]

1. d4 {[%clk 0:03:00.9]} 1... d5 {[%clk 0:02:54.1]} 2. Bf4 {[%clk 0:03:00.4]}
2... Nf6 {[%clk 0:02:54.2]} 3. e3 {[%clk 0:03:00.6]} 3... e6 {[%clk 0:02:54.9]}
4. Nd2 {[%clk 0:03:00.5]} 4... c5 {[%clk 0:02:55.4]} 5. c3 {[%clk 0:03:00]} 5...
Nc6 {[%clk 0:02:56.2]} 6. Ngf3 {[%clk 0:03:00.2]} 6... Be7 {[%clk 0:02:56.9]} 7.
Bd3 {[%clk 0:02:56.1]} 7... O-O {[%clk 0:02:57.6]} 8. Ne5 {[%clk 0:02:54.3]}
8... Nd7 {[%clk 0:02:57.5]} 9. Qh5 {[%clk 0:02:48.6]} 9... f5 {[%clk 0:02:57.4]}
10. g4 {[%clk 0:02:45]} 10... Nf6 {[%clk 0:02:55.8]} 11. Qh3 {[%clk 0:02:38.6]}
11... Nxe5 {[%clk 0:02:56]} 12. dxe5 {[%clk 0:02:35.2]} 12... Nxg4 {[%clk
0:02:55.5]} 13. Rg1 {[%clk 0:02:31.3]} 13... Bh4 {[%clk 0:02:26.9]} 14. Rxg4
{[%clk 0:01:57.4]} 14... fxg4 {[%clk 0:02:21.9]} 15. Qxg4 {[%clk 0:01:57.5]}
15... b5 {[%clk 0:01:51.1]} 16. Nf3 {[%clk 0:01:52.5]} 16... Be7 {[%clk
0:01:50.6]} 17. O-O-O {[%clk 0:01:49.7]} 17... Rf5 {[%clk 0:01:48.5]} 18. Rg1
{[%clk 0:01:09.5]} 18... g6 {[%clk 0:01:47.6]} 19. h4 {[%clk 0:01:08.7]} 19...
b4 {[%clk 0:01:48.1]} 20. h5 {[%clk 0:01:05.6]} 20... bxc3 {[%clk 0:01:43.5]}
21. hxg6 {[%clk 0:01:02.5]} 21... h5 {[%clk 0:01:42.9]} 22. Qh3 {[%clk
0:00:57.5]} 22... Qf8 {[%clk 0:01:07.2]} 23. Ng5 {[%clk 0:00:33.3]} 23... Rxg5
{[%clk 0:00:41.3]} 24. Rxg5 {[%clk 0:00:25.4]} 24... Bxg5 {[%clk 0:00:41.5]} 25.
Qxh5 {[%clk 0:00:24.9]} 25... Qh6 {[%clk 0:00:41.1]} 26. Qxh6 {[%clk 0:00:18.5]}
26... Bxh6 {[%clk 0:00:41.2]} 27. Bxh6 {[%clk 0:00:19.4]} 27... cxb2+ {[%clk
0:00:39]} 28. Kxb2 {[%clk 0:00:20.3]} 28... Bd7 {[%clk 0:00:37.7]} 29. f4 {[%clk
0:00:19]} 29... Rb8+ {[%clk 0:00:37.5]} 30. Kc3 {[%clk 0:00:18.4]} 30... Rb6
{[%clk 0:00:27.7]} 31. e4 {[%clk 0:00:17.1]} 31... d4+ {[%clk 0:00:25.8]} 32.
Kc2 {[%clk 0:00:12]} 32... Ba4+ {[%clk 0:00:26]} 33. Kc1 {[%clk 0:00:12.2]}
33... c4 {[%clk 0:00:26.1]} 34. Bf1 {[%clk 0:00:08.1]} 34... d3 {[%clk
0:00:19.1]} 35. f5 {[%clk 0:00:07.7]} 35... Be8 {[%clk 0:00:12.7]} 36. Kd2
{[%clk 0:00:04.8]} 36... Rb2+ {[%clk 0:00:12.6]} 37. Ke3 {[%clk 0:00:03.5]}
37... d2 {[%clk 0:00:09.6]} 38. Be2 {[%clk 0:00:02.9]} 38... c3 {[%clk 0:00:09]}
39. Bd1 {[%clk 0:00:03.1]} 39... c2 {[%clk 0:00:09.1]} 40. Bxc2 {[%clk
0:00:03.2]} 40... Rxc2 {[%clk 0:00:09.7]} 0-1

[Event "*** Titled Tuesday Blitz"]
[Site "Chess.com"]
[Date "2020.11.03"]
[Round "7"]
[White "A-S-00"]
[Black "ehrenfeld"]
[Result "0-1"]
[WhiteElo "2316"]
[BlackElo "2485"]
[TimeControl "180+1"]
[EndTime "11:21:10 PST"]
[Termination "ehrenfeld won on time"]

1. d4 {[%clk 0:02:59.1]} 1... Nf6 {[%clk 0:02:58.6]} 2. c4 {[%clk 0:02:58.3]}
2... e6 {[%clk 0:02:58.4]} 3. g3 {[%clk 0:02:58.3]} 3... Bb4+ {[%clk 0:02:58.1]}
4. Bd2 {[%clk 0:02:58.2]} 4... a5 {[%clk 0:02:58.6]} 5. Bg2 {[%clk 0:02:57.1]}
5... d6 {[%clk 0:02:58.6]} 6. e4 {[%clk 0:02:54.4]} 6... Nc6 {[%clk 0:02:56.2]}
7. Ne2 {[%clk 0:02:51.4]} 7... e5 {[%clk 0:02:55.8]} 8. d5 {[%clk 0:02:48.6]}
8... Ne7 {[%clk 0:02:55.5]} 9. O-O {[%clk 0:02:47.2]} 9... Bc5 {[%clk
0:02:54.5]} 10. b3 {[%clk 0:02:43.7]} 10... h5 {[%clk 0:02:39.2]} 11. Nbc3
{[%clk 0:02:33.6]} 11... h4 {[%clk 0:02:38.5]} 12. Na4 {[%clk 0:02:19]} 12...
hxg3 {[%clk 0:02:38.2]} 13. hxg3 {[%clk 0:02:17.4]} 13... Ba7 {[%clk 0:02:27.9]}
14. c5 {[%clk 0:01:37.8]} 14... Bd7 {[%clk 0:02:22.3]} 15. Qc2 {[%clk
0:01:13.3]} 15... Bxa4 {[%clk 0:01:47.2]} 16. bxa4 {[%clk 0:00:42.6]} 16... Bxc5
{[%clk 0:01:45.4]} 17. Qd3 {[%clk 0:00:34.3]} 17... Qd7 {[%clk 0:01:35.3]} 18.
Rab1 {[%clk 0:00:28]} 18... b6 {[%clk 0:01:32.9]} 19. Nc3 {[%clk 0:00:23.5]}
19... Qg4 {[%clk 0:01:25.1]} 20. Qf3 {[%clk 0:00:18.9]} 20... Qg6 {[%clk
0:01:20.7]} 21. Nb5 {[%clk 0:00:15.5]} 21... Kd7 {[%clk 0:01:13.2]} 22. Be3
{[%clk 0:00:14.7]} 22... Rh7 {[%clk 0:00:49]} 23. Bxc5 {[%clk 0:00:13.3]} 23...
bxc5 {[%clk 0:00:47]} 24. Rfc1 {[%clk 0:00:13]} 24... Qh6 {[%clk 0:00:44.8]} 25.
Kf1 {[%clk 0:00:12]} 25... Qd2 {[%clk 0:00:39.6]} 26. Rd1 {[%clk 0:00:10.4]}
26... Qxa2 {[%clk 0:00:38]} 27. Qd3 {[%clk 0:00:06.3]} 27... Rah8 {[%clk
0:00:32.9]} 28. Nxc7 {[%clk 0:00:03.9]} 28... Qxa4 {[%clk 0:00:15.9]} 29. Qb5+
{[%clk 0:00:03.2]} 29... Qxb5+ {[%clk 0:00:14.8]} 30. Nxb5 {[%clk 0:00:03.5]}
30... Rb8 {[%clk 0:00:12]} 31. Rb2 {[%clk 0:00:03.1]} 31... Rhh8 {[%clk
0:00:11]} 32. Ra1 {[%clk 0:00:02.5]} 32... Rb7 {[%clk 0:00:09.1]} 33. Rxa5
{[%clk 0:00:02.5]} 33... Rhb8 {[%clk 0:00:09.6]} 34. Ke2 {[%clk 0:00:02.5]}
34... Ne8 {[%clk 0:00:09.6]} 35. Bf1 {[%clk 0:00:02.7]} 35... Nc7 {[%clk
0:00:09.7]} 36. Kd2 {[%clk 0:00:02.2]} 36... f5 {[%clk 0:00:09.4]} 0-1

[Event "*** Titled Tuesday Blitz"]
[Site "Chess.com"]
[Date "2020.11.03"]
[Round "7"]
[White "chessmachine14"]
[Black "MoreChessJulia"]
[Result "1-0"]
[WhiteElo "2354"]
[BlackElo "2072"]
[TimeControl "180+1"]
[EndTime "11:21:14 PST"]
[Termination "chessmachine14 won by checkmate"]

1. e4 {[%clk 0:03:00.9]} 1... g6 {[%clk 0:02:58.9]} 2. d4 {[%clk 0:02:59.5]}
2... Bg7 {[%clk 0:02:58.8]} 3. Nc3 {[%clk 0:02:59.9]} 3... c5 {[%clk 0:02:58.5]}
4. Nf3 {[%clk 0:02:59.1]} 4... cxd4 {[%clk 0:02:56.6]} 5. Nxd4 {[%clk 0:03:00]}
5... Nc6 {[%clk 0:02:55.9]} 6. Nf3 {[%clk 0:02:58.2]} 6... d6 {[%clk 0:02:53.4]}
7. Be2 {[%clk 0:02:58.4]} 7... Bg4 {[%clk 0:02:52.7]} 8. O-O {[%clk 0:02:57.6]}
8... Nf6 {[%clk 0:02:51.2]} 9. Be3 {[%clk 0:02:55.1]} 9... a6 {[%clk 0:02:50.7]}
10. Qd2 {[%clk 0:02:50.9]} 10... O-O {[%clk 0:02:45.4]} 11. Bh6 {[%clk
0:02:50.4]} 11... b5 {[%clk 0:02:45.2]} 12. h3 {[%clk 0:02:48.7]} 12... b4
{[%clk 0:02:35.6]} 13. Bxg7 {[%clk 0:02:42.4]} 13... bxc3 {[%clk 0:02:33.9]} 14.
Qxc3 {[%clk 0:02:39.1]} 14... Kxg7 {[%clk 0:02:26.2]} 15. hxg4 {[%clk
0:02:38.5]} 15... Kg8 {[%clk 0:02:25.5]} 16. Nd2 {[%clk 0:02:35.9]} 16... Rc8
{[%clk 0:02:23.8]} 17. g5 {[%clk 0:02:33.1]} 17... Ne8 {[%clk 0:02:13.8]} 18.
Qe3 {[%clk 0:02:27.2]} 18... Ng7 {[%clk 0:02:12.2]} 19. c3 {[%clk 0:02:24.4]}
19... Ne6 {[%clk 0:02:11.4]} 20. f4 {[%clk 0:02:19.1]} 20... d5 {[%clk
0:02:08.8]} 21. f5 {[%clk 0:02:13.9]} 21... d4 {[%clk 0:02:02.3]} 22. cxd4
{[%clk 0:02:10.2]} 22... Qxd4 {[%clk 0:02:01.7]} 23. Qxd4 {[%clk 0:02:07.6]}
23... Nexd4 {[%clk 0:02:01.4]} 24. Bg4 {[%clk 0:02:05.9]} 24... Ne5 {[%clk
0:02:00.2]} 25. Bh3 {[%clk 0:02:02.9]} 25... Rc2 {[%clk 0:01:56.1]} 26. Nb3
{[%clk 0:01:38.7]} 26... Nxb3 {[%clk 0:01:47.1]} 27. axb3 {[%clk 0:01:39.6]}
27... Rxb2 {[%clk 0:01:47.1]} 28. Rxa6 {[%clk 0:01:33.8]} 28... Rxb3 {[%clk
0:01:45.4]} 29. Ra7 {[%clk 0:01:33.8]} 29... Re8 {[%clk 0:01:39.6]} 30. f6
{[%clk 0:01:27.3]} 30... exf6 {[%clk 0:01:27.2]} 31. Rxf6 {[%clk 0:01:22.2]}
31... Reb8 {[%clk 0:01:11.4]} 32. Re7 {[%clk 0:01:18.8]} 32... R3b5 {[%clk
0:01:02.7]} 33. Kh2 {[%clk 0:01:05.3]} 33... Kf8 {[%clk 0:00:55.7]} 34. Rc7
{[%clk 0:01:04.2]} 34... R8b7 {[%clk 0:00:52.4]} 35. Rc8+ {[%clk 0:01:03.5]}
35... Kg7 {[%clk 0:00:51.9]} 36. Re8 {[%clk 0:01:03.4]} 36... Rc7 {[%clk
0:00:48.8]} 37. Rd6 {[%clk 0:01:00.8]} 37... Rc2 {[%clk 0:00:41.2]} 38. Kg3
{[%clk 0:00:50]} 38... Rb3+ {[%clk 0:00:37.3]} 39. Kh4 {[%clk 0:00:50.1]} 39...
Rc5 {[%clk 0:00:30.6]} 40. Rdd8 {[%clk 0:00:48.8]} 40... f6 {[%clk 0:00:24.9]}
41. Re7+ {[%clk 0:00:44.2]} 41... Nf7 {[%clk 0:00:22.7]} 42. gxf6+ {[%clk
0:00:22.2]} 42... Kxf6 {[%clk 0:00:22.2]} 43. Rdd7 {[%clk 0:00:20.8]} 43... Rh5+
{[%clk 0:00:19.1]} 44. Kg4 {[%clk 0:00:20.8]} 44... Rg5+ {[%clk 0:00:16.7]} 45.
Kf4 {[%clk 0:00:20.7]} 45... Ne5 {[%clk 0:00:05.8]} 46. Re6# {[%clk 0:00:20.4]}
1-0

[Event "*** Titled Tuesday Blitz"]
[Site "Chess.com"]
[Date "2020.11.03"]
[Round "7"]
[White "BegmuratovKh2010"]
[Black "VladimirBugayev"]
[Result "1-0"]
[WhiteElo "2454"]
[BlackElo "2302"]
[TimeControl "180+1"]
[EndTime "11:21:15 PST"]
[Termination "BegmuratovKh2010 won on time"]

1. d4 {[%clk 0:03:00.9]} 1... Nf6 {[%clk 0:02:59]} 2. c4 {[%clk 0:03:00.2]} 2...
c5 {[%clk 0:02:58.5]} 3. d5 {[%clk 0:02:59.3]} 3... b5 {[%clk 0:02:59]} 4. e3
{[%clk 0:02:57.6]} 4... b4 {[%clk 0:02:57.3]} 5. Nf3 {[%clk 0:02:55.9]} 5... d6
{[%clk 0:02:55.3]} 6. Be2 {[%clk 0:02:54.8]} 6... g6 {[%clk 0:02:55.8]} 7. O-O
{[%clk 0:02:53.9]} 7... Bg7 {[%clk 0:02:56.2]} 8. a3 {[%clk 0:02:51.8]} 8... a5
{[%clk 0:02:52.8]} 9. axb4 {[%clk 0:02:50.4]} 9... cxb4 {[%clk 0:02:50.7]} 10.
Nbd2 {[%clk 0:02:49]} 10... Nbd7 {[%clk 0:02:45.1]} 11. Qc2 {[%clk 0:02:44.6]}
11... Nc5 {[%clk 0:02:37.4]} 12. Nd4 {[%clk 0:02:42.4]} 12... Bd7 {[%clk
0:02:30]} 13. b3 {[%clk 0:02:27.7]} 13... O-O {[%clk 0:02:14.3]} 14. Bb2 {[%clk
0:02:16.5]} 14... a4 {[%clk 0:02:12.2]} 15. bxa4 {[%clk 0:02:15.6]} 15... Bxa4
{[%clk 0:02:11.7]} 16. Qb1 {[%clk 0:02:04.8]} 16... Qb6 {[%clk 0:02:04.2]} 17.
e4 {[%clk 0:01:46.5]} 17... Rfb8 {[%clk 0:01:46.6]} 18. Nb5 {[%clk 0:01:32.4]}
18... Bxb5 {[%clk 0:01:39.4]} 19. cxb5 {[%clk 0:01:33.3]} 19... Na4 {[%clk
0:01:19.8]} 20. Nc4 {[%clk 0:00:50.3]} 20... Qxb5 {[%clk 0:01:14.2]} 21. Bd4
{[%clk 0:00:24.5]} 21... b3 {[%clk 0:00:56.4]} 22. Nb6 {[%clk 0:00:17.9]} 22...
Qxe2 {[%clk 0:00:52.9]} 23. Nxa8 {[%clk 0:00:17.6]} 23... Rxa8 {[%clk
0:00:35.3]} 24. Qxb3 {[%clk 0:00:17.6]} 24... Qa6 {[%clk 0:00:28]} 25. Ra3
{[%clk 0:00:15.9]} 25... Nd7 {[%clk 0:00:25.4]} 26. Bxg7 {[%clk 0:00:15.1]}
26... Kxg7 {[%clk 0:00:25]} 27. Qb4 {[%clk 0:00:14.8]} 27... Ndc5 {[%clk
0:00:23.8]} 28. Rfa1 {[%clk 0:00:14.1]} 28... Qe2 {[%clk 0:00:19.1]} 29. f3
{[%clk 0:00:13.3]} 29... Qc2 {[%clk 0:00:15.6]} 30. Qd4+ {[%clk 0:00:12.6]}
30... f6 {[%clk 0:00:13.9]} 31. Qd1 {[%clk 0:00:10.6]} 31... Qxd1+ {[%clk
0:00:12.9]} 32. Rxd1 {[%clk 0:00:11.5]} 32... Rb8 {[%clk 0:00:13.3]} 33. Rda1
{[%clk 0:00:10.9]} 33... Rb4 {[%clk 0:00:12.3]} 34. Kf2 {[%clk 0:00:09.5]} 34...
f5 {[%clk 0:00:12.4]} 35. exf5 {[%clk 0:00:09.1]} 35... gxf5 {[%clk 0:00:12.2]}
36. R1a2 {[%clk 0:00:10]} 36... Kf6 {[%clk 0:00:12]} 37. Re3 {[%clk 0:00:09.1]}
37... Nd7 {[%clk 0:00:07.5]} 38. Rae2 {[%clk 0:00:08.9]} 38... Ne5 {[%clk
0:00:06.3]} 39. g3 {[%clk 0:00:08.7]} 39... Nc5 {[%clk 0:00:04.3]} 40. h3 {[%clk
0:00:07.5]} 40... f4 {[%clk 0:00:04.5]} 41. gxf4 {[%clk 0:00:06.7]} 41... Rxf4
{[%clk 0:00:03.8]} 42. Kg3 {[%clk 0:00:07.1]} 1-0

[Event "*** Titled Tuesday Blitz"]
[Site "Chess.com"]
[Date "2020.11.03"]
[Round "7"]
[White "German_Bazeev"]
[Black "Zhigalko_Sergei"]
[Result "0-1"]
[WhiteElo "2746"]
[BlackElo "2917"]
[TimeControl "180+1"]
[EndTime "11:21:16 PST"]
[Termination "Zhigalko_Sergei won by resignation"]

1. d4 {[%clk 0:03:00.9]} 1... Nf6 {[%clk 0:02:59.6]} 2. Nf3 {[%clk 0:03:01.5]}
2... e6 {[%clk 0:02:59.3]} 3. c4 {[%clk 0:03:02.1]} 3... b6 {[%clk 0:02:59.3]}
4. Nc3 {[%clk 0:03:01.9]} 4... Bb4 {[%clk 0:02:59]} 5. Bg5 {[%clk 0:03:01.6]}
5... h6 {[%clk 0:02:59.3]} 6. Bh4 {[%clk 0:03:00]} 6... g5 {[%clk 0:02:59.6]} 7.
Bg3 {[%clk 0:03:00]} 7... Ne4 {[%clk 0:02:59.9]} 8. a3 {[%clk 0:03:00.1]} 8...
Bxc3+ {[%clk 0:02:59.5]} 9. bxc3 {[%clk 0:03:00.1]} 9... Bb7 {[%clk 0:02:57.6]}
10. Nd2 {[%clk 0:03:00.6]} 10... Nxg3 {[%clk 0:02:57.3]} 11. hxg3 {[%clk
0:03:01.5]} 11... Qe7 {[%clk 0:02:57.9]} 12. e3 {[%clk 0:02:56.1]} 12... d6
{[%clk 0:02:58.1]} 13. Rb1 {[%clk 0:02:51.4]} 13... Nd7 {[%clk 0:02:57.7]} 14.
g4 {[%clk 0:02:47.2]} 14... O-O-O {[%clk 0:02:27]} 15. a4 {[%clk 0:02:47.1]}
15... a5 {[%clk 0:02:21]} 16. Be2 {[%clk 0:02:41.9]} 16... e5 {[%clk 0:02:03.1]}
17. Bf3 {[%clk 0:02:37.2]} 17... e4 {[%clk 0:01:58.2]} 18. Be2 {[%clk
0:02:36.5]} 18... h5 {[%clk 0:01:53.3]} 19. gxh5 {[%clk 0:02:34.9]} 19... f5
{[%clk 0:01:53.5]} 20. Rb5 {[%clk 0:02:31.9]} 20... Rdf8 {[%clk 0:01:47.5]} 21.
Nf1 {[%clk 0:02:01]} 21... Bc6 {[%clk 0:01:41.9]} 22. Qb3 {[%clk 0:01:58.7]}
22... Bxb5 {[%clk 0:01:15.5]} 23. Qxb5 {[%clk 0:01:57.9]} 23... Kb7 {[%clk
0:01:15.1]} 24. Kd2 {[%clk 0:01:21.4]} 24... c6 {[%clk 0:01:10.2]} 25. Qb3
{[%clk 0:01:16]} 25... f4 {[%clk 0:01:10.4]} 26. c5 {[%clk 0:01:10.9]} 26...
dxc5 {[%clk 0:01:07.5]} 27. Qc4 {[%clk 0:01:11.1]} 27... Kc7 {[%clk 0:01:00.8]}
28. Nh2 {[%clk 0:01:03.3]} 28... fxe3+ {[%clk 0:00:40.3]} 29. fxe3 {[%clk
0:01:03.1]} 29... Nf6 {[%clk 0:00:31.2]} 30. Rb1 {[%clk 0:00:56.4]} 30... Nd5
{[%clk 0:00:22.7]} 31. Ng4 {[%clk 0:00:52.7]} 31... Rxh5 {[%clk 0:00:22.2]} 32.
Ne5 {[%clk 0:00:50.7]} 32... Rhh8 {[%clk 0:00:18.1]} 33. Qb3 {[%clk 0:00:18.7]}
33... g4 {[%clk 0:00:14]} 34. Nxg4 {[%clk 0:00:07.5]} 34... Rhg8 {[%clk
0:00:10]} 35. Rh1 {[%clk 0:00:05.6]} 35... Rxg4 {[%clk 0:00:08.5]} 36. Bxg4
{[%clk 0:00:05.5]} 36... Rf2+ {[%clk 0:00:07.8]} 37. Ke1 {[%clk 0:00:05.4]}
37... Rxg2 {[%clk 0:00:07.1]} 38. Bf5 {[%clk 0:00:05.3]} 38... Qg5 {[%clk
0:00:04.9]} 39. Rh7+ {[%clk 0:00:02.3]} 39... Kd8 {[%clk 0:00:05.1]} 40. Rh8+
{[%clk 0:00:02.8]} 40... Ke7 {[%clk 0:00:05.3]} 41. Rh7+ {[%clk 0:00:03.2]}
41... Kf8 {[%clk 0:00:05]} 0-1

[Event "*** Titled Tuesday Blitz"]
[Site "Chess.com"]
[Date "2020.11.03"]
[Round "7"]
[White "AquivaRubinstein"]
[Black "Rud_Makarian"]
[Result "1-0"]
[WhiteElo "2548"]
[BlackElo "2758"]
[TimeControl "180+1"]
[EndTime "11:21:21 PST"]
[Termination "AquivaRubinstein won on time"]

1. e4 {[%clk 0:03:00.9]} 1... e5 {[%clk 0:02:58.3]} 2. Nf3 {[%clk 0:02:59.7]}
2... Nc6 {[%clk 0:02:56.8]} 3. Bc4 {[%clk 0:02:46.3]} 3... Bc5 {[%clk
0:02:56.1]} 4. c3 {[%clk 0:02:45.3]} 4... Nf6 {[%clk 0:02:55.7]} 5. d4 {[%clk
0:02:45.1]} 5... exd4 {[%clk 0:02:55.8]} 6. e5 {[%clk 0:02:45.2]} 6... d5 {[%clk
0:02:55.1]} 7. Bb5 {[%clk 0:02:45.3]} 7... Ne4 {[%clk 0:02:55.1]} 8. cxd4 {[%clk
0:02:44.9]} 8... Bb4+ {[%clk 0:02:55.3]} 9. Nbd2 {[%clk 0:02:42.3]} 9... O-O
{[%clk 0:02:53.7]} 10. O-O {[%clk 0:02:40.4]} 10... Bg4 {[%clk 0:02:38]} 11.
Bxc6 {[%clk 0:02:31.2]} 11... bxc6 {[%clk 0:02:38.9]} 12. Qc2 {[%clk 0:02:29.5]}
12... Bxf3 {[%clk 0:01:58.2]} 13. Nxf3 {[%clk 0:02:26.6]} 13... c5 {[%clk
0:01:56.8]} 14. a3 {[%clk 0:02:20.8]} 14... Ba5 {[%clk 0:01:52.4]} 15. dxc5
{[%clk 0:02:20.8]} 15... c6 {[%clk 0:01:53]} 16. Nd4 {[%clk 0:02:01.1]} 16...
Bc7 {[%clk 0:01:38.3]} 17. f3 {[%clk 0:01:33.4]} 17... Bxe5 {[%clk 0:01:21.8]}
18. Nxc6 {[%clk 0:01:31.7]} 18... Bxh2+ {[%clk 0:01:22.1]} 19. Kxh2 {[%clk
0:01:31.4]} 19... Qh4+ {[%clk 0:01:23]} 20. Kg1 {[%clk 0:01:30.9]} 20... Ng3
{[%clk 0:01:23.9]} 21. Be3 {[%clk 0:00:56]} 21... Rfe8 {[%clk 0:01:18.3]} 22.
Qd2 {[%clk 0:00:46.8]} 22... d4 {[%clk 0:01:07.1]} 23. Nxd4 {[%clk 0:00:39.6]}
23... Rad8 {[%clk 0:01:06.9]} 24. Rfe1 {[%clk 0:00:26.1]} 24... Qh1+ {[%clk
0:01:02.5]} 25. Kf2 {[%clk 0:00:25.3]} 25... Qh4 {[%clk 0:01:03.4]} 26. Kg1
{[%clk 0:00:20.4]} 26... h6 {[%clk 0:01:01]} 27. Bf4 {[%clk 0:00:15.1]} 27...
Nh5 {[%clk 0:00:38.1]} 28. Rxe8+ {[%clk 0:00:09.7]} 28... Rxe8 {[%clk 0:00:39]}
29. Be3 {[%clk 0:00:06.4]} 29... Ng3 {[%clk 0:00:38.5]} 30. Re1 {[%clk
0:00:05.1]} 30... Qh1+ {[%clk 0:00:37.7]} 31. Kf2 {[%clk 0:00:04.6]} 31... Qh4
{[%clk 0:00:38.6]} 32. Kg1 {[%clk 0:00:04.8]} 32... f5 {[%clk 0:00:32.7]} 33. c6
{[%clk 0:00:04.9]} 33... Qh1+ {[%clk 0:00:26.6]} 34. Kf2 {[%clk 0:00:04.6]}
34... Qh4 {[%clk 0:00:27.5]} 35. Kg1 {[%clk 0:00:04.8]} 35... f4 {[%clk
0:00:27.1]} 36. Bxf4 {[%clk 0:00:04.3]} 36... Rxe1+ {[%clk 0:00:24.1]} 37. Qxe1
{[%clk 0:00:05.2]} 37... Qxf4 {[%clk 0:00:24.7]} 38. Ne6 {[%clk 0:00:03.9]}
38... Qc4 {[%clk 0:00:04.7]} 39. c7 {[%clk 0:00:04.3]} 39... Nf5 {[%clk
0:00:03.2]} 40. Qd2 {[%clk 0:00:04.2]} 40... Kh7 {[%clk 0:00:03]} 41. Qd1 {[%clk
0:00:03]} 41... Ne3 {[%clk 0:00:02.6]} 42. Qd2 {[%clk 0:00:03.5]} 42... Qf1+
{[%clk 0:00:02.2]} 43. Kh2 {[%clk 0:00:04]} 1-0

[Event "*** Titled Tuesday Blitz"]
[Site "Chess.com"]
[Date "2020.11.03"]
[Round "7"]
[White "RamyresCoelho"]
[Black "ChronicUnhappiness"]
[Result "0-1"]
[WhiteElo "2056"]
[BlackElo "2352"]
[TimeControl "180+1"]
[EndTime "11:21:21 PST"]
[Termination "ChronicUnhappiness won by checkmate"]

1. e4 {[%clk 0:02:59.6]} 1... Nf6 {[%clk 0:03:00.9]} 2. Nc3 {[%clk 0:02:55.4]}
2... d6 {[%clk 0:02:59.8]} 3. d4 {[%clk 0:02:53.7]} 3... g6 {[%clk 0:03:00.1]}
4. f3 {[%clk 0:02:53.9]} 4... Bg7 {[%clk 0:03:00.4]} 5. Be3 {[%clk 0:02:54.5]}
5... O-O {[%clk 0:03:00.7]} 6. Qd2 {[%clk 0:02:55.4]} 6... e5 {[%clk 0:03:00.7]}
7. O-O-O {[%clk 0:02:55.5]} 7... Nc6 {[%clk 0:02:59.1]} 8. d5 {[%clk 0:02:54.9]}
8... Nd4 {[%clk 0:02:58.6]} 9. Nge2 {[%clk 0:02:55.1]} 9... Nxe2+ {[%clk
0:02:12.9]} 10. Bxe2 {[%clk 0:02:56]} 10... Nh5 {[%clk 0:02:06.7]} 11. Bh6
{[%clk 0:02:44.6]} 11... Bxh6 {[%clk 0:01:52.2]} 12. Qxh6 {[%clk 0:02:45.5]}
12... Nf4 {[%clk 0:01:52.7]} 13. g3 {[%clk 0:02:42.6]} 13... Nxe2+ {[%clk
0:01:51.5]} 14. Nxe2 {[%clk 0:02:43.5]} 14... Qf6 {[%clk 0:01:45.9]} 15. Rdf1
{[%clk 0:02:40.3]} 15... Bd7 {[%clk 0:01:43]} 16. h4 {[%clk 0:02:38.1]} 16... c6
{[%clk 0:01:40.4]} 17. h5 {[%clk 0:02:33]} 17... Qg7 {[%clk 0:01:39.2]} 18. hxg6
{[%clk 0:02:31.2]} 18... fxg6 {[%clk 0:01:27.5]} 19. Qh4 {[%clk 0:02:25]} 19...
cxd5 {[%clk 0:01:25.5]} 20. exd5 {[%clk 0:02:25.9]} 20... Rac8 {[%clk
0:01:20.8]} 21. Nc3 {[%clk 0:02:23.4]} 21... Bf5 {[%clk 0:01:06.6]} 22. g4
{[%clk 0:02:17.3]} 22... Rc4 {[%clk 0:01:01.5]} 23. Qh2 {[%clk 0:02:09.7]} 23...
Bd7 {[%clk 0:00:53.1]} 24. Ne4 {[%clk 0:02:08.6]} 24... Bxg4 {[%clk 0:00:40.1]}
25. Nxd6 {[%clk 0:02:04.3]} 25... Rcf4 {[%clk 0:00:39.6]} 26. Qg3 {[%clk
0:01:46.8]} 26... Bxf3 {[%clk 0:00:38]} 27. Rh4 {[%clk 0:01:40.1]} 27... Rxh4
{[%clk 0:00:31]} 28. Qxh4 {[%clk 0:01:41]} 28... Bxd5 {[%clk 0:00:29.9]} 29.
Rxf8+ {[%clk 0:01:36.7]} 29... Qxf8 {[%clk 0:00:30]} 30. Qb4 {[%clk 0:01:29.1]}
30... Qf4+ {[%clk 0:00:26.3]} 31. Qxf4 {[%clk 0:01:28.7]} 31... exf4 {[%clk
0:00:27.2]} 32. Ne8 {[%clk 0:01:24.8]} 32... Kf7 {[%clk 0:00:24.9]} 33. Nc7
{[%clk 0:01:24.2]} 33... Bc6 {[%clk 0:00:22.8]} 34. b4 {[%clk 0:01:21.4]} 34...
a6 {[%clk 0:00:22.1]} 35. c4 {[%clk 0:01:20]} 35... h5 {[%clk 0:00:21]} 36. b5
{[%clk 0:01:19.9]} 36... axb5 {[%clk 0:00:21.3]} 37. cxb5 {[%clk 0:01:20.8]}
37... Be4 {[%clk 0:00:20.5]} 38. a4 {[%clk 0:01:16.6]} 38... h4 {[%clk
0:00:20.6]} 39. b6 {[%clk 0:01:00.1]} 39... h3 {[%clk 0:00:20.3]} 40. Nb5 {[%clk
0:01:00.6]} 40... Ke6 {[%clk 0:00:18.1]} 41. Nd4+ {[%clk 0:01:00.6]} 41... Ke5
{[%clk 0:00:17.1]} 42. Ne2 {[%clk 0:00:52]} 42... h2 {[%clk 0:00:16.7]} 43. Kd2
{[%clk 0:00:51]} 43... h1=Q {[%clk 0:00:16.2]} 44. a5 {[%clk 0:00:51.1]} 44...
Bc6 {[%clk 0:00:15.5]} 45. Kc3 {[%clk 0:00:49.2]} 45... Qe4 {[%clk 0:00:14.6]}
46. Nc1 {[%clk 0:00:47.5]} 46... Qd4+ {[%clk 0:00:14]} 47. Kb3 {[%clk
0:00:47.5]} 47... Bd5+ {[%clk 0:00:13.8]} 48. Kc2 {[%clk 0:00:47.6]} 48... Qc5+
{[%clk 0:00:13.2]} 49. Kd2 {[%clk 0:00:47.1]} 49... Qxa5+ {[%clk 0:00:14.1]} 50.
Ke2 {[%clk 0:00:47.1]} 50... Qxb6 {[%clk 0:00:15]} 51. Nd3+ {[%clk 0:00:47]}
51... Kf5 {[%clk 0:00:13.9]} 52. Kd2 {[%clk 0:00:46.6]} 52... Qe3+ {[%clk
0:00:13.7]} 53. Kc3 {[%clk 0:00:46.7]} 53... g5 {[%clk 0:00:14.6]} 54. Kc2
{[%clk 0:00:46.9]} 54... Be4 {[%clk 0:00:13.3]} 55. Kb2 {[%clk 0:00:46.8]} 55...
Qxd3 {[%clk 0:00:13]} 56. Ka1 {[%clk 0:00:47.7]} 56... Qb5 {[%clk 0:00:11.3]}
57. Ka2 {[%clk 0:00:47.4]} 57... Qb4 {[%clk 0:00:09.2]} 58. Ka1 {[%clk
0:00:46.4]} 58... f3 {[%clk 0:00:09]} 59. Ka2 {[%clk 0:00:45]} 59... f2 {[%clk
0:00:09.1]} 60. Ka1 {[%clk 0:00:45.9]} 60... f1=Q+ {[%clk 0:00:09.1]} 61. Ka2
{[%clk 0:00:46.8]} 61... Bd5# {[%clk 0:00:09.4]} 0-1